bitfinex/quotes_BTCUSD_20241010
["timestamp","ask_amount","ask_price","bid_price","bid_amount"]
[1728583998703,0.338456,59092.0,59064.0,0.169305]
[1728583998704,0.023,59085.0,59064.0,0.169305]
[1728583998942,0.023,59085.0,59066.0,0.1693]
[1728583999161,0.023,59085.0,59067.0,0.1]
[1728583999618,0.023,59085.0,59070.0,0.169289]
[1728583999864,0.023,59088.0,59074.0,0.169276]
[1728584000123,0.003,59091.0,59074.0,0.169276]
[1728584000124,0.003,59091.0,59075.0,0.28250752]
[1728584000375,0.003,59091.0,59082.0,0.1]
[1728584000619,0.003,59091.0,59087.0,0.16924]
[1728584000854,0.003,59091.0,59082.0,0.1]
[1728584000855,0.49302974,59103.0,59082.0,0.1]
[1728584001097,0.49302974,59090.0,59082.0,0.1]
[1728584001341,0.49302974,59096.0,59082.0,0.1]
[1728584001574,0.49302974,59096.0,59076.0,0.1]
[1728584001816,0.169223,59094.0,59076.0,0.1]
[1728584002038,0.023,59089.0,59082.0,0.001]
[1728584002317,0.49302974,59093.0,59082.0,0.001]
[1728584002540,0.192227,59092.0,59076.0,0.1]
[1728584002772,0.023,59090.0,59076.0,0.1]
[1728584003000,0.023,59090.0,59076.0,0.101]
[1728584003232,0.51602974,59087.0,59076.0,0.101]
[1728584003954,0.68527374,59087.0,59076.0,0.001]
[1728584004187,0.68527374,59087.0,59075.0,0.1804]
[1728584004188,0.023,59085.0,59075.0,0.1804]
[1728584004432,0.023,59080.0,59061.0,0.2757]
[1728584004665,0.023,59072.0,59061.0,0.1975]
[1728584004895,0.338568,59073.0,59057.0,0.000814]
[1728584005136,1.16590883,59095.0,59066.0,0.1975]
[1728584005374,0.0782,59106.0,59066.0,0.1975]
[1728584005375,0.003,59087.0,59078.0,0.33853]
[1728584005612,0.003,59087.0,59086.0,0.169244]
[1728584005847,0.005,59108.0,59089.0,0.169234]
[1728584006108,0.005,59108.0,59079.0,0.0001]
[1728584006109,0.005,59115.0,59087.0,0.338482]
[1728584006338,0.59240378,59119.0,59099.0,0.49302974]
[1728584006572,0.169174,59111.0,59099.0,0.49302974]
[1728584006801,0.338333,59114.0,59099.0,0.49302974]
[1728584007047,0.25410378,59119.0,59105.0,0.49302974]
[1728584007509,0.1693093,59113.0,59105.0,0.49302974]
[1728584007735,0.1693093,59113.0,59106.0,0.25410378]
[1728584007959,0.1693093,59113.0,59105.0,0.49302974]
[1728584008425,0.1693093,59113.0,59105.0,0.49402974]
[1728584008780,0.023,59112.0,59105.0,0.49402974]
[1728584008880,0.1693093,59113.0,59111.0,0.49302974]
[1728584009111,0.25410378,59122.0,59115.0,0.169161]
[1728584009357,0.25410378,59122.0,59121.0,0.49302974]
[1728584009606,0.001632,59129.0,59121.0,0.49302974]
[1728584009844,0.001632,59129.0,59127.0,0.49302974]
[1728584010312,0.1709413,59129.0,59127.0,0.49302974]
[1728584010546,0.001632,59129.0,59128.0,0.169124]
[1728584010771,0.001632,59129.0,59127.0,0.49302974]
[1728584011008,0.001632,59129.0,59128.0,0.269124]
[1728584012666,0.001632,59129.0,59128.0,0.3583]
[1728584012920,0.001632,59129.0,59128.0,0.527424]
[1728584013391,0.0010937,59129.0,59128.0,0.3583]
[1728584013631,0.0010937,59129.0,59128.0,0.527424]
[1728584013876,0.0020937,59129.0,59128.0,0.527424]
[1728584014349,0.0010937,59129.0,59128.0,0.527424]
[1728584014579,0.193403,59129.0,59121.0,0.49302974]
[1728584014811,0.023,59126.0,59122.0,0.25410378]
[1728584015039,0.1693093,59126.0,59122.0,0.74713352]
[1728584015261,0.1693093,59126.0,59122.0,0.49302974]
[1728584015486,0.1693093,59125.0,59122.0,0.49302974]
[1728584015718,0.1693093,59125.0,59114.0,0.1965]
[1728584015719,0.1693093,59125.0,59115.0,0.74713352]
[1728584015950,0.1693093,59125.0,59121.0,0.1]
[1728584016180,0.1693093,59125.0,59121.0,0.59302974]
[1728584016694,0.1693093,59125.0,59121.0,0.77617174]
[1728584017147,0.0020937,59129.0,59121.0,0.60702974]
[1728584017373,0.1693093,59128.0,59126.0,0.49302974]
[1728584017847,0.25410378,59127.0,59121.0,0.102]
[1728584018077,0.023,59125.0,59121.0,0.25610378]
[1728584018321,0.1693093,59124.0,59115.0,0.35410378]
[1728584018559,0.1693093,59124.0,59121.0,0.002]
[1728584019557,0.1693093,59124.0,59121.0,0.271141]
[1728584019815,0.1693093,59124.0,59121.0,0.271143]
[1728584020041,0.1693093,59124.0,59122.0,0.169141]
[1728584020269,0.1693093,59124.0,59121.0,0.269144]
[1728584020504,0.1693093,59124.0,59121.0,0.1]
[1728584020731,0.01,59125.0,59123.0,0.169136]
[1728584020961,0.01,59125.0,59121.0,0.101]
[1728584021162,0.1693093,59128.0,59123.0,0.338277]
[1728584021416,0.1693093,59128.0,59124.0,0.169135]
[1728584021663,0.1693093,59128.0,59121.0,0.1]
[1728584021893,0.1693093,59128.0,59124.0,0.1]
[1728584022347,0.004,59125.0,59124.0,0.1]
[1728584023032,0.1733093,59125.0,59121.0,4e-05]
[1728584023259,0.1693093,59124.0,59121.0,4e-05]
[1728584023996,0.023,59123.0,59121.0,4e-05]
[1728584024394,0.023,59123.0,59122.0,0.25410378]
[1728584024395,0.1693093,59123.0,59122.0,0.25410378]
[1728584024403,0.023,59125.0,59121.0,4e-05]
[1728584024654,0.004,59124.0,59121.0,4e-05]
[1728584024918,0.192141,59122.0,59121.0,4e-05]
[1728584025139,0.338277,59123.0,59106.0,0.000814]
[1728584025140,0.192184,59107.0,59106.0,0.000814]
[1728584025365,1.85112257,59107.0,59106.0,0.000814]
[1728584026068,1.35809283,59107.0,59106.0,0.000814]
[1728584026327,1.85112257,59107.0,59106.0,0.000814]
[1728584026592,2.02043187,59107.0,59106.0,0.000814]
[1728584026848,0.023,59100.0,59094.0,0.25410378]
[1728584027067,1.16590883,59099.0,59088.0,0.25410378]
[1728584027288,0.023,59096.0,59088.0,0.25410378]
[1728584027563,0.023,59093.0,59088.0,0.25410378]
[1728584027833,0.023,59097.0,59082.0,0.25410378]
[1728584028100,0.59252878,59098.0,59086.0,0.49302974]
[1728584028101,0.1923093,59090.0,59086.0,0.49302974]
[1728584028344,0.25410378,59098.0,59086.0,0.49302974]
[1728584028345,0.1693093,59096.0,59086.0,0.49302974]
[1728584028579,0.25410378,59098.0,59082.0,0.338508]
[1728584028580,0.1693093,59089.0,59082.0,0.169255]
[1728584028819,0.1693093,59089.0,59088.0,0.001]
[1728584030004,0.1693093,59089.0,59083.0,0.1]
[1728584030243,1.16590883,59109.0,59089.0,0.1]
[1728584030469,0.25410378,59093.0,59091.0,0.169229]
[1728584030719,0.007,59096.0,59091.0,0.169229]
[1728584030948,0.007,59096.0,59089.0,0.1]
[1728584030949,0.1693093,59095.0,59092.0,0.49302974]
[1728584031193,0.1693093,59095.0,59089.0,0.1]
[1728584031409,0.1693093,59095.0,59083.0,0.001]
[1728584031626,0.023,59094.0,59090.0,0.25410378]
[1728584031868,0.023,59092.0,59083.0,0.169252]
[1728584032153,0.1693093,59091.0,59088.0,0.25410378]
[1728584032380,0.1693093,59091.0,59080.0,0.68462974]
[1728584032381,0.023,59090.0,59089.0,4e-05]
[1728584032638,0.1923093,59090.0,59089.0,4e-05]
[1728584034560,0.1923093,59090.0,59089.0,0.00104]
[1728584034561,0.2003093,59090.0,59089.0,0.00104]
[1728584034979,0.1923093,59090.0,59089.0,4e-05]
[1728584035247,0.3695423,59090.0,59089.0,0.00104]
[1728584036410,0.3615423,59090.0,59089.0,4e-05]
[1728584036860,0.3725423,59090.0,59089.0,0.00104]
[1728584037336,0.3615423,59090.0,59089.0,4e-05]
[1728584037581,0.3715423,59090.0,59089.0,0.00104]
[1728584038288,0.86257204,59090.0,59089.0,0.00104]
[1728584038524,0.1773093,59090.0,59089.0,0.00104]
[1728584039767,0.1773093,59090.0,59089.0,0.170276]
[1728584039768,0.008,59090.0,59089.0,0.170276]
[1728584040007,0.25410378,59101.0,59093.0,0.169224]
[1728584040267,0.1693093,59101.0,59096.0,0.169213]
[1728584040543,0.25410378,59107.0,59096.0,0.169213]
[1728584040544,0.25410378,59107.0,59100.0,0.1]
[1728584040789,0.25410378,59119.0,59106.0,0.49302974]
[1728584041043,0.25410378,59119.0,59118.0,0.169153]
[1728584041282,0.25410378,59119.0,59117.0,0.169153]
[1728584041506,0.338178,59141.0,59119.0,0.169148]
[1728584041737,0.169096,59138.0,59119.0,0.169148]
[1728584041992,0.1693093,59128.0,59119.0,0.25410378]
[1728584042477,0.1693093,59128.0,59117.0,0.1841]
[1728584042478,0.25410378,59127.0,59117.0,0.1841]
[1728584042710,0.25572978,59137.0,59117.0,0.1841]
[1728584042711,0.1693093,59126.0,59117.0,0.1841]
[1728584043708,0.023,59123.0,59117.0,0.1841]
[1728584043935,0.023,59125.0,59117.0,0.1841]
[1728584043936,0.023,59121.0,59117.0,0.1841]
[1728584044177,0.1693093,59122.0,59117.0,0.1841]
[1728584044421,0.1693093,59122.0,59118.0,0.169152]
[1728584044651,0.25519748,59129.0,59118.0,0.338305]
[1728584044922,0.25519748,59129.0,59117.0,0.1861]
[1728584044923,0.0010937,59129.0,59127.0,0.169125]
[1728584045147,0.0010937,59129.0,59126.0,0.338255]
[1728584045374,0.0010937,59129.0,59128.0,0.169124]
[1728584045625,0.0010937,59129.0,59126.0,0.338255]
[1728584045854,0.0010937,59129.0,59128.0,0.169124]
[1728584046354,0.0010937,59129.0,59124.0,0.338269]
[1728584046355,0.0010937,59129.0,59127.0,0.169125]
[1728584046571,0.0010937,59129.0,59128.0,0.169124]
[1728584047016,0.0010937,59129.0,59127.0,0.338254]
[1728584047017,0.0090937,59129.0,59127.0,0.101]
[1728584047254,0.0090937,59129.0,59128.0,0.42322778]
[1728584047596,0.0010937,59129.0,59128.0,0.169124]
[1728584047650,0.0080937,59129.0,59128.0,0.001]
[1728584048210,0.0010937,59129.0,59123.0,0.1]
[1728584048425,0.0010937,59129.0,59128.0,0.001]
[1728584048668,0.200403,59129.0,59128.0,0.001]
[1728584049742,0.193403,59129.0,59125.0,0.1]
[1728584049975,0.1693093,59128.0,59125.0,0.1]
[1728584050194,0.1693093,59128.0,59127.0,0.25410378]
[1728584050426,0.0030937,59129.0,59125.0,0.1]
[1728584050659,0.0010937,59129.0,59128.0,0.49302974]
[1728584050883,0.0050937,59129.0,59128.0,0.66215374]
[1728584051113,0.0050937,59129.0,59128.0,0.49302974]
[1728584051354,0.0010937,59129.0,59128.0,0.169124]
[1728584051591,0.0050937,59129.0,59128.0,0.169124]
[1728584052500,0.0050937,59129.0,59128.0,0.17250613]
[1728584052730,0.0050937,59129.0,59126.0,0.169129]
[1728584052962,0.0050937,59129.0,59118.0,0.0001]
[1728584052963,0.023,59127.0,59118.0,0.0001]
[1728584053221,0.023,59125.0,59118.0,0.0001]
[1728584053473,0.42341308,59126.0,59119.0,0.25410378]
[1728584053474,0.023,59120.0,59119.0,0.25410378]
[1728584053685,0.023,59120.0,59118.0,0.0001]
[1728584053686,0.1923093,59120.0,59118.0,0.0001]
[1728584053935,0.023,59125.0,59119.0,0.25410378]
[1728584054166,0.1693093,59124.0,59120.0,0.74713352]
[1728584054389,0.1693093,59124.0,59120.0,0.49302974]
[1728584054637,0.0010937,59129.0,59123.0,0.169138]
[1728584054867,0.1693093,59128.0,59122.0,0.338282]
[1728584055106,0.1693093,59128.0,59125.0,0.49302974]
[1728584055346,0.0010937,59129.0,59125.0,0.49302974]
[1728584055347,0.0010937,59129.0,59128.0,0.169124]
[1728584055879,0.0010937,59129.0,59128.0,0.17250637]
[1728584056984,0.0010937,59129.0,59127.0,0.1]
[1728584057419,0.0020937,59129.0,59128.0,0.170124]
[1728584057852,0.0020937,59129.0,59128.0,0.17345624]
[1728584058076,1.13713683,59159.0,59148.0,0.5]
[1728584058331,0.001626,59163.0,59162.0,0.269027]
[1728584058600,0.25410378,59172.0,59171.0,0.169001]
[1728584058843,0.25410378,59178.0,59171.0,0.66202874]
[1728584059097,0.25410378,59178.0,59166.0,0.49302974]
[1728584059358,0.1693093,59172.0,59167.0,0.35410378]
[1728584059584,0.1693093,59172.0,59167.0,0.1]
[1728584060318,0.1693093,59172.0,59168.0,0.1]
[1728584060540,0.023,59171.0,59168.0,0.1]
[1728584060773,0.023,59169.0,59168.0,0.1]
[1728584061009,0.1923093,59169.0,59168.0,0.1]
[1728584061483,0.1923093,59169.0,59166.0,0.1]
[1728584062884,0.1923093,59167.0,59151.0,0.25410378]
[1728584063134,0.192038,59158.0,59157.0,0.25410378]
[1728584063367,0.1923093,59158.0,59157.0,0.25410378]
[1728584063836,0.25410378,59172.0,59155.0,0.169047]
[1728584064048,0.023,59165.0,59157.0,0.16904]
[1728584064266,0.023,59165.0,59152.0,0.00338067]
[1728584064267,0.023,59163.0,59153.0,0.338103]
[1728584064478,1.13713683,59165.0,59153.0,0.338103]
[1728584064479,0.023,59161.0,59157.0,0.16904]
[1728584064690,0.1923093,59161.0,59154.0,0.338097]
[1728584064905,0.001,59167.0,59166.0,0.169015]
[1728584065126,0.001,59167.0,59166.0,0.269015]
[1728584065398,0.25410378,59174.0,59170.0,0.169003]
[1728584065644,0.25410378,59174.0,59171.0,0.1]
[1728584065897,1.13713683,59180.0,59171.0,0.1]
[1728584066131,0.001632,59185.0,59171.0,0.1]
[1728584066132,0.001632,59185.0,59172.0,0.168998]
[1728584066363,0.25410378,59181.0,59171.0,0.1]
[1728584066594,0.25410378,59181.0,59170.0,0.338008]
[1728584066822,0.25410378,59181.0,59169.0,0.269005]
[1728584067045,0.009632,59173.0,59171.0,4e-05]
[1728584067522,0.023,59172.0,59171.0,0.10004]
[1728584067981,0.023,59172.0,59171.0,0.269041]
[1728584068436,0.023,59172.0,59171.0,4e-05]
[1728584069314,0.023,59172.0,59171.0,0.10004]
[1728584069315,0.032,59172.0,59171.0,0.10004]
[1728584069782,0.023,59172.0,59171.0,0.10004]
[1728584070499,0.023,59172.0,59171.0,4e-05]
[1728584070763,0.023,59172.0,59171.0,0.269041]
[1728584071691,0.023,59172.0,59171.0,0.10104]
[1728584071917,0.023,59172.0,59171.0,0.00104]
[1728584072151,0.023,59172.0,59171.0,0.269041]
[1728584072594,0.001632,59173.0,59172.0,0.168998]
[1728584072822,0.001632,59173.0,59172.0,0.27237761]
[1728584073768,1.13524994,59186.0,59173.0,0.1958]
[1728584073999,0.001632,59189.0,59188.0,0.268953]
[1728584074489,0.1709413,59189.0,59188.0,0.1]
[1728584075211,0.1709413,59189.0,59185.0,0.35410378]
[1728584075442,0.1693093,59188.0,59187.0,0.1]
[1728584075674,0.1923093,59188.0,59187.0,0.1]
[1728584076430,0.1923093,59188.0,59185.0,0.1]
[1728584076644,0.003632,59189.0,59185.0,0.1]
[1728584076863,0.003632,59189.0,59186.0,0.168956]
[1728584077142,0.003632,59189.0,59187.0,0.1]
[1728584077597,0.42341308,59188.0,59173.0,0.364794]
[1728584077816,0.023,59187.0,59179.0,0.25410378]
[1728584078036,0.023,59185.0,59179.0,0.25410378]
[1728584078255,0.023,59183.0,59173.0,0.364795]
[1728584078494,0.023,59181.0,59178.0,0.25410378]
[1728584078682,0.001632,59189.0,59171.0,4e-05]
[1728584078683,0.023,59179.0,59171.0,4e-05]
[1728584078904,0.25410378,59188.0,59171.0,4e-05]
[1728584078905,0.023,59177.0,59171.0,4e-05]
[1728584079115,0.023,59175.0,59171.0,4e-05]
[1728584079331,0.023,59173.0,59171.0,0.169141]
[1728584079539,0.023,59173.0,59172.0,0.168998]
[1728584079748,0.023,59173.0,59171.0,0.169139]
[1728584079964,0.023,59173.0,59172.0,0.168998]
[1728584081322,0.1923093,59173.0,59171.0,0.00114]
[1728584081544,0.1923093,59172.0,59171.0,0.00114]
[1728584081774,1.50155724,59172.0,59171.0,0.00014]
[1728584082194,1.50355724,59172.0,59171.0,0.00014]
[1728584082685,0.005,59169.0,59159.0,0.25410378]
[1728584082900,0.023,59163.0,59159.0,0.25410378]
[1728584083361,0.023,59162.0,59147.0,0.338137]
[1728584083593,0.169022,59164.0,59149.0,0.169064]
[1728584083845,0.023,59165.0,59148.0,0.169067]
[1728584084039,0.192025,59163.0,59146.0,0.338146]
[1728584084290,1.13510994,59162.0,59147.0,0.169068]
[1728584084504,1.13510994,59162.0,59146.0,0.338146]
[1728584084505,0.023,59161.0,59148.0,0.169067]
[1728584084772,0.023,59161.0,59147.0,0.169068]
[1728584084978,0.023,59149.0,59132.0,0.32925015]
[1728584085222,0.023,59147.0,59144.0,0.25410378]
[1728584085428,0.1693093,59148.0,59146.0,0.004]
[1728584085429,0.023,59148.0,59146.0,0.004]
[1728584086179,0.1923093,59147.0,59146.0,0.004]
[1728584086406,0.023,59146.0,59138.0,0.49302974]
[1728584086619,0.023,59144.0,59139.0,0.338185]
[1728584086841,1.09960208,59153.0,59143.0,0.25410378]
[1728584087056,0.001626,59173.0,59172.0,0.168998]
[1728584087304,0.001626,59173.0,59172.0,0.66202774]
[1728584087522,0.001626,59173.0,59172.0,0.76202774]
[1728584088700,0.25410378,59183.0,59182.0,0.16897]
[1728584088939,0.25410378,59190.0,59180.0,3.336324]
[1728584088940,0.1693093,59188.0,59184.0,0.1]
[1728584090278,0.023,59187.0,59184.0,0.1]
[1728584091148,0.023,59185.0,59184.0,0.1]
[1728584091368,0.1923093,59185.0,59184.0,0.1]
[1728584092229,0.1923093,59185.0,59181.0,0.1]
[1728584092679,0.25410378,59192.0,59180.0,2.998374]
[1728584092680,0.191973,59181.0,59180.0,2.998374]
[1728584092683,0.023,59181.0,59180.0,2.998374]
[1728584092918,0.1923093,59181.0,59180.0,2.998374]
[1728584095562,0.1963093,59181.0,59180.0,2.998374]
[1728584096017,0.1923093,59181.0,59180.0,2.998374]
[1728584096257,0.1979353,59181.0,59180.0,2.998374]
[1728584096496,0.3669083,59181.0,59180.0,2.998374]
[1728584096732,0.3629083,59181.0,59180.0,2.998374]
[1728584096962,0.3719083,59181.0,59180.0,2.999374]
[1728584097898,1.26169897,59181.0,59180.0,2.999374]
[1728584098144,1.25969897,59181.0,59180.0,2.999374]
[1728584098372,1.25069897,59181.0,59180.0,2.998374]
[1728584098609,1.25669897,59181.0,59180.0,2.999374]
[1728584098840,1.26169897,59181.0,59180.0,2.95377471]
[1728584099085,1.25769897,59181.0,59180.0,2.95277471]
[1728584099562,1.26569897,59181.0,59180.0,2.95377471]
[1728584099807,1.25769897,59181.0,59180.0,2.95277471]
[1728584100313,1.25169897,59181.0,59180.0,2.95277471]
[1728584100548,1.22869897,59181.0,59180.0,2.95277471]
[1728584100775,1.23369897,59181.0,59180.0,2.95277471]
[1728584101015,1.23569897,59181.0,59180.0,2.95277471]
[1728584101257,0.3479083,59181.0,59180.0,2.01052814]
[1728584101484,0.3479083,59181.0,59180.0,1.97055476]
[1728584101485,0.3469083,59181.0,59180.0,1.97055476]
[1728584101709,0.3599083,59181.0,59180.0,1.97155476]
[1728584102476,0.68909183,59181.0,59180.0,1.65840475]
[1728584102733,0.89213289,59181.0,59180.0,1.14196512]
[1728584102963,0.007,59173.0,59172.0,0.25410378]
[1728584103206,0.007,59173.0,59160.0,0.25410378]
[1728584103207,0.17603,59161.0,59160.0,0.25410378]
[1728584103427,1.91583421,59161.0,59160.0,0.25410378]
[1728584103657,1.91583421,59161.0,59151.0,0.25410378]
[1728584103658,0.169055,59152.0,59151.0,0.25410378]
[1728584103879,0.3383643,59152.0,59151.0,0.25410378]
[1728584104142,0.1693093,59152.0,59147.0,0.000813]
[1728584104395,0.1681093,59152.0,59150.0,0.25410378]
[1728584104628,0.25410378,59165.0,59152.0,0.1]
[1728584104853,0.25410378,59165.0,59158.0,0.269038]
[1728584104854,0.25410378,59159.0,59158.0,0.269038]
[1728584105084,0.25410378,59159.0,59154.0,0.05042908]
[1728584105304,0.1693093,59164.0,59152.0,0.10256]
[1728584105529,0.1693093,59164.0,59152.0,0.25666378]
[1728584105530,0.169024,59163.0,59152.0,0.25666378]
[1728584105773,0.25410378,59159.0,59152.0,0.00256]
[1728584106018,0.1693093,59158.0,59152.0,0.25666378]
[1728584106247,0.023,59157.0,59152.0,0.25666378]
[1728584106485,0.1693093,59156.0,59152.0,0.00256]
[1728584108670,0.1693093,59156.0,59152.0,0.00356]
[1728584109120,0.1443093,59156.0,59152.0,0.00756]
[1728584110134,1.2441,59155.0,59152.0,0.00756]
[1728584110359,0.1693093,59154.0,59152.0,0.00756]
[1728584111313,1.2441,59155.0,59154.0,0.16905]
[1728584111764,0.25410378,59165.0,59154.0,0.1]
[1728584112231,1.2441,59182.0,59176.0,0.168987]
[1728584112234,1.2441,59188.0,59176.0,0.247987]
[1728584112457,0.25410378,59182.0,59181.0,0.268973]
[1728584112913,0.25410378,59188.0,59182.0,0.1]
[1728584113171,0.001632,59189.0,59184.0,0.337928]
[1728584113394,0.001632,59189.0,59188.0,0.168953]
[1728584114157,0.1709413,59189.0,59182.0,0.15037273]
[1728584114417,0.1709413,59189.0,59184.0,0.1]
[1728584114418,0.1693093,59188.0,59184.0,0.1]
[1728584114692,0.1693093,59188.0,59179.0,0.15037273]
[1728584114927,0.1693093,59188.0,59183.0,0.25410378]
[1728584115170,0.1693093,59188.0,59185.0,0.25410378]
[1728584115393,0.1693093,59188.0,59180.0,0.00337906]
[1728584115614,0.002632,59189.0,59188.0,0.168953]
[1728584115912,0.002632,59189.0,59188.0,0.268953]
[1728584116163,0.002632,59189.0,59188.0,0.1]
[1728584116164,0.1709413,59189.0,59188.0,0.1]
[1728584116393,0.1709413,59189.0,59185.0,0.002]
[1728584116636,0.16409335,59188.0,59185.0,0.102]
[1728584117126,0.001632,59189.0,59188.0,0.168953]
[1728584118099,0.25410378,59205.0,59200.0,0.003738]
[1728584118337,0.023,59203.0,59200.0,0.003738]
[1728584118589,0.023,59201.0,59200.0,0.003738]
[1728584118831,0.1923093,59201.0,59200.0,0.003738]
[1728584119810,0.1923093,59201.0,59200.0,0.004738]
[1728584120031,0.3612253,59201.0,59200.0,0.004738]
[1728584120248,0.1923093,59201.0,59200.0,0.004738]
[1728584120531,0.1693093,59201.0,59200.0,0.004738]
[1728584120979,0.1923093,59201.0,59200.0,0.003738]
[1728584121489,0.3612253,59201.0,59200.0,0.003738]
[1728584121764,0.3752253,59201.0,59200.0,0.004738]
[1728584121984,1.6243253,59201.0,59200.0,0.004738]
[1728584122225,1.6193253,59201.0,59200.0,0.004738]
[1728584122482,1.4364093,59201.0,59200.0,0.003738]
[1728584122972,1.4444093,59201.0,59200.0,0.004738]
[1728584123871,1.6183253,59201.0,59200.0,0.004738]
[1728584124567,1.6103253,59201.0,59200.0,0.003738]
[1728584124822,1.6133253,59201.0,59200.0,0.003738]
[1728584125289,1.6053253,59201.0,59200.0,0.003738]
[1728584125527,1.6103253,59201.0,59200.0,0.003738]
[1728584125793,1.6213253,59201.0,59200.0,0.003738]
[1728584126289,1.6213253,59201.0,59188.0,0.000812]
[1728584126290,0.68897557,59189.0,59188.0,0.000812]
[1728584127011,0.68897557,59189.0,59170.0,0.25410378]
[1728584127012,0.023,59175.0,59170.0,0.25410378]
[1728584127249,0.023,59173.0,59170.0,0.25410378]
[1728584127497,0.1693093,59172.0,59170.0,0.25410378]
[1728584127714,0.1693093,59172.0,59171.0,0.169001]
[1728584127961,0.023,59188.0,59165.0,0.49052557]
[1728584128186,0.25410378,59182.0,59171.0,0.169]
[1728584128416,0.1693093,59181.0,59174.0,0.168993]
[1728584128670,0.1693093,59181.0,59166.0,0.10337981]
[1728584128671,0.1693093,59181.0,59167.0,0.338025]
[1728584128899,0.1693093,59181.0,59171.0,0.42310278]
[1728584129334,0.1693093,59181.0,59171.0,0.25410378]
[1728584129566,0.1693093,59181.0,59172.0,0.337996]
[1728584129789,0.1723093,59181.0,59180.0,0.168976]
[1728584130293,0.1723093,59181.0,59178.0,0.0764]
[1728584130535,0.1723093,59181.0,59180.0,0.168976]
[1728584131382,0.1723093,59181.0,59178.0,0.414363]
[1728584131383,0.1723093,59181.0,59178.0,0.245378]
[1728584131622,0.1723093,59181.0,59178.0,0.0764]
[1728584131623,0.1693093,59181.0,59178.0,0.0764]
[1728584131873,0.1693093,59181.0,59179.0,0.01474443]
[1728584132115,0.1923093,59180.0,59179.0,0.01474443]
[1728584132358,0.1923093,59180.0,59174.0,0.25414378]
[1728584132359,0.1693093,59180.0,59174.0,0.25414378]
[1728584132620,0.1693093,59180.0,59179.0,0.01474443]
[1728584132858,0.023,59179.0,59174.0,4e-05]
[1728584133106,0.3612993,59175.0,59174.0,4e-05]
[1728584133604,1.6086613,59175.0,59174.0,4e-05]
[1728584135073,1.6036613,59175.0,59174.0,4e-05]
[1728584135307,1.6156613,59175.0,59174.0,4e-05]
[1728584136731,0.171015,59166.0,59165.0,0.25410378]
[1728584136984,1.92865449,59166.0,59165.0,0.25410378]
[1728584137456,0.169031,59161.0,59158.0,0.25410378]
[1728584137760,0.1923093,59159.0,59158.0,0.25410378]
[1728584137955,0.1693093,59159.0,59158.0,0.25410378]
[1728584138183,0.1693093,59159.0,59152.0,0.42815778]
[1728584138413,0.1693093,59159.0,59158.0,0.01032803]
[1728584138633,0.1693093,59159.0,59157.0,0.01033239]
[1728584138848,0.1693093,59159.0,59152.0,0.25910378]
[1728584138849,0.1693093,59159.0,59158.0,0.01032803]
[1728584139320,0.1693093,59159.0,59153.0,0.00338096]
[1728584139555,0.1693093,59159.0,59158.0,0.169038]
[1728584139783,1.239008,59175.0,59158.0,0.00338068]
[1728584140008,0.25410378,59171.0,59158.0,0.01032803]
[1728584140231,1.239008,59175.0,59161.0,0.338058]
[1728584140232,0.1693093,59170.0,59161.0,0.338058]
[1728584140465,0.1693093,59170.0,59167.0,0.1919]
[1728584140682,1.239008,59184.0,59168.0,0.1]
[1728584140937,0.1693093,59183.0,59168.0,0.11028444]
[1728584141167,0.1693093,59183.0,59176.0,0.33797]
[1728584141395,1.239008,59184.0,59177.0,0.10337835]
[1728584141627,0.1693093,59182.0,59177.0,0.11024522]
[1728584142096,0.3382813,59182.0,59177.0,0.01034522]
[1728584142557,0.168981,59178.0,59177.0,0.0001]
[1728584142789,0.3382903,59178.0,59177.0,0.0001]
[1728584143015,0.3612903,59178.0,59177.0,0.0001]
[1728584143487,1.6002983,59178.0,59177.0,0.0001]
[1728584143937,1.6022983,59178.0,59177.0,0.0001]
[1728584144586,1.6072983,59178.0,59177.0,0.0001]
[1728584144821,1.6162983,59178.0,59177.0,0.0001]
[1728584145530,0.007,59167.0,59157.0,0.0005]
[1728584145757,2.09810358,59167.0,59157.0,0.0005]
[1728584146016,2.09810358,59167.0,59166.0,0.26897912]
[1728584146261,0.16903,59161.0,59157.0,0.0005]
[1728584146503,0.3613393,59161.0,59157.0,0.0005]
[1728584146780,0.169038,59158.0,59157.0,0.0005]
[1728584146989,0.3613473,59158.0,59157.0,0.0005]
[1728584147218,1.6022553,59158.0,59157.0,0.0005]
[1728584148390,1.6002553,59158.0,59157.0,0.0005]
[1728584148824,1.6102553,59158.0,59157.0,0.0005]
[1728584149040,1.6122553,59158.0,59157.0,0.0005]
[1728584149263,1.6022553,59158.0,59157.0,0.0005]
[1728584149687,1.6162553,59158.0,59157.0,0.0005]
[1728584150118,1.6192553,59158.0,59157.0,0.0005]
[1728584150857,1.6052553,59158.0,59157.0,0.0005]
[1728584151123,1.6002553,59158.0,59157.0,0.0005]
[1728584151347,0.1933093,59158.0,59157.0,0.0005]
[1728584151812,0.1923093,59158.0,59157.0,0.0005]
[1728584152084,0.3663473,59158.0,59157.0,0.0005]
[1728584152340,0.1743093,59158.0,59157.0,0.0005]
[1728584152567,0.3383473,59158.0,59157.0,0.0005]
[1728584153236,0.1693093,59158.0,59157.0,0.0005]
[1728584153454,0.3613473,59158.0,59157.0,0.0005]
[1728584153699,0.1923093,59158.0,59157.0,0.0005]
[1728584153937,0.3613473,59158.0,59157.0,0.0005]
[1728584154155,2.26757128,59158.0,59157.0,0.0005]
[1728584154664,0.66692628,59153.0,59147.0,0.000813]
[1728584154885,0.199067,59148.0,59147.0,0.000813]
[1728584155111,0.85924958,59148.0,59147.0,0.000813]
[1728584155564,2.17942905,59148.0,59147.0,0.000813]
[1728584155794,1.6022843,59148.0,59147.0,0.000813]
[1728584156043,1.5952843,59148.0,59147.0,0.000813]
[1728584157241,1.6002843,59148.0,59147.0,0.000813]
[1728584157461,1.6162843,59148.0,59147.0,0.000813]
[1728584157942,1.6022843,59148.0,59147.0,0.000813]